lending/lending_fUSD_20260102
["ID","MTS","AMOUNT","RATE_DAILY","PERIOD"]
[400299694,1767312004282,284.58,0.00028,120]
[400299695,1767312061101,500.0,0.00043166,120]
[400299696,1767312362273,500.0,0.00043162,120]
[400299698,1767312546103,-150.36,0.00010798,2]
[400299699,1767312546123,-334.4536307,0.00010798,2]
[400299700,1767312546145,-150.36,0.00011433,2]
[400299710,1767312631556,-150.36,0.00012069,2]
[400299711,1767312631566,-140.65605699,0.00012704,2]
[400299712,1767312631578,-9.70394301,0.00012704,2]
[400299713,1767312631588,-385.83193465,0.000129,2]
[400299714,1767312631609,-114.16806535,0.000129,2]
[400299715,1767312631618,-150.0,0.00013315,2]
[400299716,1767312631630,-150.36,0.00013339,2]
[400299717,1767312631639,-500.0,0.00013698,2]
[400299718,1767312631648,-500.0,0.00013698,2]
[400299719,1767312631659,-500.0,0.00013698,2]
[400299720,1767312631668,-759.59,0.00013699,2]
[400299721,1767312631678,-547.19,0.00013734,2]
[400299722,1767312631687,-935.3,0.00013868,2]
[400299723,1767312631697,-1200.0,0.00013941,2]
[400299724,1767312631707,-157.74,0.00013942,2]
[400299725,1767312631716,-163.51,0.00013952,2]
[400299726,1767312631725,-150.36,0.00013974,2]
[400299727,1767312631735,-999.0,0.00014412,3]
[400299728,1767312631745,-250.0,0.00014434,2]
[400299729,1767312631755,-150.36,0.00014609,2]
[400299730,1767312631764,-300.0,0.00014691,2]
[400299731,1767312631773,-41709.7083944,0.00014692,2]
[400299732,1767312631785,-17199.33098574,0.00014692,2]
[400299733,1767312631796,-27582.98676394,0.00014692,2]
[400299735,1767312631807,-31270.13719056,0.00014692,2]
[400299737,1767312631818,-882.31924771,0.00014692,2]
[400299741,1767312631885,-534.06656813,0.00014692,2]
[400299742,1767312631897,-984.13374169,0.00014692,2]
[400299744,1767312631908,-15778.88030783,0.00014692,2]
[400299746,1767312631917,-238.43678407,0.00014733,2]
[400299748,1767312631926,-183.68451072,0.00014733,2]
[400299750,1767312631935,-150.0,0.0001479,2]
[400299752,1767312631944,-500.0,0.0001479,2]
[400299754,1767312631954,-500.0,0.0001479,2]
[400299757,1767312631963,-500.0,0.0001479,2]
[400299760,1767312631972,-500.0,0.0001479,2]
[400299762,1767312631981,-500.0,0.0001479,2]
[400299764,1767312631991,-500.0,0.0001479,2]
[400299766,1767312632000,-500.0,0.0001479,2]
[400299767,1767312632009,-500.0,0.0001479,2]
[400299769,1767312632018,-500.0,0.0001479,2]
[400299771,1767312632028,-500.0,0.0001479,2]
[400299773,1767312632037,-500.0,0.0001479,2]
[400299774,1767312632046,-500.0,0.0001479,2]
[400299776,1767312632055,-171.49839738,0.0001479,2]
[400299800,1767312637831,-326.50141243,0.00014691,2]
[400299801,1767312637840,-500.0,0.00014691,2]
[400299802,1767312637849,-192.73789279,0.00014691,2]
[400299803,1767312637859,-591.6539652,0.00014691,2]
[400299804,1767312637869,-970.28050033,0.00014794,2]
[400299805,1767312637884,-215.38049967,0.00014794,2]
[400299806,1767312637894,-156.762,0.00014794,2]
[400299807,1767312637904,-913.0,0.00014819,2]
[400299808,1767312637914,-339.3108197,0.00014833,2]
[400299809,1767312637926,-160.6891803,0.00014833,2]
[400299810,1767312637935,-183.68451065,0.00014974,2]
[400299811,1767312637945,-183.68451065,0.00015215,2]
[400299812,1767312637955,-150.36,0.00015244,2]
[400299813,1767312637964,-150.0,0.00015247,2]
[400299814,1767312637973,-200.0,0.0001529,2]
[400299815,1767312637983,-284.58,0.000153,5]
[400299816,1767312637993,-1680.0,0.00015335,2]
[400299817,1767312638002,-183.68451065,0.00015455,2]
[400299818,1767312638012,-1224.0,0.00015589,2]
[400299819,1767312638022,-183.68451065,0.00015696,2]
[400299820,1767312638032,-183.68451065,0.00015937,2]
[400299821,1767312638041,-354.0,0.00016084,2]
[400299822,1767312638050,-151.0,0.00016172,2]
[400299823,1767312638060,-151.0,0.00016172,2]
[400299824,1767312638070,-183.68451065,0.00016178,2]
[400299825,1767312638086,-151.0,0.00016212,2]
[400299826,1767312638096,-151.0,0.00016212,2]
[400299827,1767312638106,-151.0,0.00016213,2]
[400299828,1767312638115,-151.0,0.00016218,2]
[400299829,1767312638126,-151.0,0.000163,2]
[400299830,1767312638135,-183.68451065,0.00016418,2]
[400299831,1767312638145,-3693.7,0.00016438,2]
[400299832,1767312638155,-151.0,0.00016489,2]
[400299833,1767312638166,-249.09,0.00016613,2]
[400299834,1767312638175,-183.68451065,0.00016659,2]
[400299835,1767312638185,-267.7852801,0.0001666,2]
[400299836,1767312638195,-150.0,0.00016699,2]
[400299837,1767312638204,-150.0,0.00016699,2]
[400299838,1767312638213,-168.0,0.00016737,2]
[400299839,1767312638223,-150.0,0.00016754,2]
[400299840,1767312638233,-338.2114975,0.00016806,2]
[400299841,1767312638242,-200.0,0.00016809,2]
[400299842,1767312638252,-2351.0,0.00016869,2]
[400299844,1767312638506,-500.0,0.00016886,2]
[400299845,1767312638517,-183.68451065,0.000169,2]
[400299846,1767312638526,-4881.06522783,0.000169,2]
[400299847,1767312638535,-265.82018575,0.000169,2]
[400299848,1767312638545,-524.92802794,0.000169,2]
[400299849,1767312638555,-4179.44,0.00016922,2]
[400299850,1767312638566,-661.7885025,0.00016926,2]
[400299851,1767312638576,-500.0,0.00016973,2]
[400299852,1767312638586,-504.23655901,0.00016973,2]
[400299853,1767312638596,-500.0,0.00016973,2]
[400299854,1767312638606,-500.77289104,0.00016973,2]
[400299855,1767312638616,-500.78263347,0.00016973,2]
[400299856,1767312638626,-500.0,0.00016973,2]
[400299857,1767312638636,-591.10103079,0.00016973,2]
[400299858,1767312638646,-500.0,0.00016973,2]
[400299859,1767312638656,-578.09055034,0.00016973,2]
[400299860,1767312638665,-500.0,0.00016973,2]
[400299861,1767312638675,-501.10419373,0.00016973,2]
[400299862,1767312638685,-500.0,0.00016973,2]
[400299863,1767312638694,-500.0,0.00016973,2]
[400299864,1767312638704,-168.66915662,0.00016973,2]
[400299865,1767312638714,-500.70033912,0.00016973,2]
[400299866,1767312638724,-334.06877568,0.00016973,2]
[400299867,1767312638733,-160.39124832,0.00016973,2]
[400299868,1767312638743,-500.0,0.00016973,2]
[400299869,1767312638753,-500.69794678,0.00016973,2]
[400299870,1767312638762,-206.96281871,0.00016973,2]
[400299871,1767312638771,-160.84618272,0.00016973,2]
[400299872,1767312638784,-331.31191545,0.00016973,2]
[400299873,1767312638793,-500.0,0.00016973,2]
[400299874,1767312638803,-500.0,0.00016973,2]
[400299875,1767312638812,-500.8964132,0.00016973,2]
[400299876,1767312638822,-500.0,0.00016973,2]
[400299877,1767312638832,-500.0,0.00016973,2]
[400299878,1767312638841,-150.0,0.00016973,2]
[400299879,1767312638850,-3386.4199145,0.00016988,2]
[400299880,1767312638860,-1737.5559322,0.00016988,2]
[400299881,1767312638869,-33943.4703545,0.00016989,2]
[400299882,1767312638879,-500.0,0.00016999,2]
[400299883,1767312638888,-500.0,0.00016999,2]
[400299884,1767312638898,-500.0,0.00016999,2]
[400299885,1767312638907,-506.99337488,0.00016999,2]
[400299886,1767312638917,-6861.30927011,0.00017,2]
[400299887,1767312638930,-4219.49174464,0.00017,2]
[400299890,1767312639737,-1775.25298755,0.00017,2]
[400299891,1767312639790,-470.6396,0.00017,2]
[400299892,1767312640034,-394.5039824,0.00017,2]
[400299893,1767312640240,-320.80564374,0.00017,2]
[400299944,1767312662367,500.0,0.00043162,120]
[400299945,1767312961449,500.0,0.00043162,120]
[400299946,1767313051737,151.0,0.00043162,50]
[400299947,1767313052035,175.393223,0.00043162,50]
[400299948,1767313261383,500.0,0.00043162,120]
[400299950,1767313552944,-150.0,0.00013216,2]
[400299951,1767313553166,-150.0,0.00013216,2]
[400299952,1767313553268,-574.595691,0.00014329,2]
[400299953,1767313553293,-946.746209,0.00014401,2]
[400299954,1767313561852,500.0,0.00043162,120]
[400299955,1767313601130,-121.978791,0.00014401,2]
[400299956,1767313601151,-156.763,0.00014401,2]
[400299957,1767313601173,-116.74001597,0.00014595,2]
[400299962,1767313830678,2079.74359381,0.00043162,120]
[400299963,1767313831674,-224.899166,0.00014521,2]
[400299965,1767313831684,-380.81342971,0.00014594,2]
[400299967,1767313831696,-449.66614174,0.00014594,2]
[400299971,1767313831714,-369.52042855,0.00014594,2]
[400299973,1767313831723,-300.0,0.00014594,2]
[400299975,1767313831733,-59.99240173,0.00014595,2]
[400299976,1767313831743,-897.59717295,0.00014595,2]
[400299977,1767313831839,-287.59,0.00014595,2]
[400299978,1767313831851,-1156.05256378,0.00014595,2]
[400299979,1767313831884,-259.39015822,0.00014595,2]
[400299980,1767313831895,-257.87596969,0.00014595,2]
[400299981,1767313831906,-1168.18354245,0.00014595,2]
[400300017,1767313837823,-574.45642797,0.00013699,2]
[400300018,1767313837835,-293.48357203,0.00013699,2]
[400300019,1767313837844,-228.5509887,0.00014594,2]
[400300020,1767313837854,-386.44695275,0.00014595,2]
[400300021,1767313837865,-1436.31215176,0.00014595,2]
[400300022,1767313837876,-518.38239764,0.00014595,2]
[400300033,1767313840094,-10185.87604076,0.00014595,2]
[400300034,1767313840110,-380.9790429,0.00014595,2]
[400300035,1767313840128,-3112.20531399,0.00014595,2]
[400300036,1767313840143,-301.48178888,0.00014595,2]
[400300040,1767313843644,-298.0,0.00014595,2]
[400300041,1767313844652,-271.46602208,0.00014595,2]
[400300042,1767313844663,-276.29565446,0.00014595,2]
[400300043,1767313844674,-745.41795146,0.00014595,2]
[400300044,1767313844722,-0.00062543,0.00014595,2]
[400300045,1767313844787,-43.94242303,0.00014595,2]
[400300046,1767313844801,-353.1863629,0.00014595,2]
[400300047,1767313844812,-600.930018,0.00014595,2]
[400300051,1767313845794,-241829.69868304,0.00014595,2]
[400300052,1767313862193,500.0,0.00043162,120]
[400300053,1767313907897,545.04215381,0.00043162,120]
[400300054,1767314161236,500.0,0.00043162,120]
[400300055,1767314240339,1000.0,0.00043162,120]
[400300056,1767314249796,1000.0,0.00043162,120]
[400300057,1767314256910,1100.0,0.00043162,120]
[400300058,1767314276072,500.0,0.00043162,120]
[400300060,1767314461102,500.0,0.00043162,120]
[400300063,1767314607205,151.0,0.00043162,50]
[400300064,1767314607506,151.0,0.00043162,50]
[400300065,1767314607783,151.0,0.00043162,50]
[400300066,1767314608070,151.0,0.00043162,50]
[400300067,1767314608350,151.0,0.00043162,50]
[400300068,1767314608636,151.0,0.00043162,50]
[400300069,1767314608952,151.0,0.00043162,50]
[400300070,1767314609255,151.0,0.00043162,50]
[400300071,1767314609545,151.0,0.00043162,50]
[400300072,1767314609831,229.437646,0.00043162,50]
[400300076,1767314760921,500.0,0.00043162,120]
[400300077,1767314923893,169.05,7.714e-05,2]
[400300078,1767314968405,4961.799999,0.00043162,120]
[400300079,1767314969138,-274.478344,0.00014512,2]
[400300080,1767314969158,-167.35966673,0.00014585,2]
[400300081,1767314969178,-221.6132,0.00014594,2]
[400300082,1767314969199,-184.3620977,0.00014975,2]
[400300085,1767315031917,-166.66,0.00014769,2]
[400300086,1767315031927,-1200.0,0.00014975,2]
[400300087,1767315031937,-924.2123377,0.00014976,2]
[400300088,1767315032161,-4399.1276623,0.00014976,2]
[400300090,1767315032173,-834.9769566,0.00014976,2]
[400300092,1767315032184,-299.99,0.00014976,2]
[400300094,1767315032195,-776.15703811,0.00014976,2]
[400300096,1767315032207,-853.92747061,0.00014976,2]
[400300098,1767315032219,-113.40157268,0.00014976,2]
[400300099,1767315032228,-166.66,0.0001508,2]
[400300100,1767315032238,-466.96147072,0.00015205,2]
[400300148,1767315037948,-33.03852928,0.00015205,2]
[400300149,1767315037959,-436.96147072,0.00015347,2]
[400300150,1767315037972,-480.96,0.00015347,2]
[400300151,1767315038053,-82.07852928,0.00015347,2]
[400300152,1767315038065,-166.66,0.00015391,2]
[400300153,1767315038075,-714.2896876,0.00015429,2]
[400300154,1767315038087,-198.7103124,0.00015429,2]
[400300155,1767315038098,-1199.0,0.00015429,2]
[400300156,1767315038108,-166.66,0.00015701,2]
[400300157,1767315038118,-412.52364535,0.00015842,2]
[400300158,1767315038128,-1326.62872404,0.00015842,2]
[400300159,1767315038138,-500.0,0.00015894,2]
[400300160,1767315038148,-500.0,0.00015894,2]
[400300161,1767315038158,-500.0,0.00015894,2]
[400300162,1767315038168,-500.0,0.00015894,2]
[400300163,1767315038178,-500.0,0.00015894,2]
[400300164,1767315038188,-500.0,0.00015894,2]
[400300165,1767315038198,-500.0,0.00015894,2]
[400300166,1767315038207,-500.0,0.00015894,2]
[400300167,1767315038217,-500.0,0.00015894,2]
[400300168,1767315038227,-541.4574225,0.00015894,2]
[400300169,1767315038237,-500.0,0.00015894,2]
[400300170,1767315038246,-500.0,0.00015894,2]
[400300171,1767315038256,-500.0,0.00015894,2]
[400300172,1767315038266,-500.0,0.00015895,2]
[400300173,1767315038276,-159.98569209,0.00015895,2]
[400300174,1767315038286,-264.15777564,0.00015895,2]
[400300175,1767315038295,-23252.4702658,0.00015896,2]
[400300176,1767315038312,-762.64682151,0.00015896,2]
[400300204,1767315039998,-296.9,0.00015896,2]
[400300205,1767315040052,-8904.92513306,0.00015896,2]
[400300206,1767315040064,-2602.99277642,0.00015896,2]
[400300207,1767315040076,-1434.6,0.00015896,2]
[400300208,1767315040110,-375.6200005,0.00015896,2]
[400300209,1767315040122,-2054.98497725,0.00015896,2]
[400300210,1767315040134,-9831.02028239,0.00015896,2]
[400300211,1767315040214,-25608.17919756,0.00015896,2]
[400300212,1767315040226,-16957.25349034,0.00015896,2]
[400300218,1767315044555,-470.70224448,0.00015896,2]
[400300219,1767315044608,-875.3,0.00015896,2]
[400300231,1767315061447,500.0,0.00043162,120]
[400300232,1767315362227,500.0,0.00043162,120]
[400300235,1767315435224,8333.33,0.00043162,120]
[400300236,1767315435461,8333.33,0.00043162,120]
[400300237,1767315435696,8333.33,0.00043162,120]
[400300238,1767315435939,8333.33,0.00043162,120]
[400300239,1767315436212,8333.33,0.00043162,120]
[400300240,1767315436831,8333.33,0.00043162,120]
[400300241,1767315437079,8333.33,0.00043162,120]
[400300242,1767315437365,8333.33,0.00043162,120]
[400300243,1767315437605,8333.33,0.00043162,120]
[400300244,1767315437883,8333.33,0.00043162,120]
[400300245,1767315438134,8333.33,0.00043162,120]
[400300246,1767315438397,8333.33,0.00043162,120]
[400300247,1767315438651,8333.33,0.00043162,120]
[400300248,1767315438888,8333.33,0.00043162,120]
[400300249,1767315439118,8333.33,0.00043162,120]
[400300250,1767315439358,8333.33,0.00043162,120]
[400300251,1767315439617,8333.33,0.00043162,120]
[400300252,1767315439867,8333.33,0.00043162,120]
[400300253,1767315440104,8333.33,0.00043162,120]
[400300254,1767315440348,8333.33,0.00043162,120]
[400300255,1767315440582,8333.33,0.00043162,120]
[400300256,1767315440820,8333.33,0.00043162,120]
[400300257,1767315441055,8333.33,0.00043162,120]
[400300258,1767315441285,8333.41,0.00043162,120]
[400300259,1767315661351,500.0,0.00043162,120]
[400300260,1767315805879,609.45420982,0.00043162,120]
[400300262,1767315963419,500.0,0.00043162,120]
[400300270,1767316232060,-287.0,0.00015287,2]
[400300271,1767316232070,-1200.0,0.00015287,2]
[400300272,1767316232079,-150.0,0.00015288,2]
[400300273,1767316232088,-150.0,0.00015288,2]
[400300274,1767316232098,-150.0,0.00015288,2]
[400300275,1767316232107,-150.0,0.00015288,2]
[400300276,1767316232116,-220.99561546,0.00015288,2]
[400300277,1767316232126,-150.0,0.00015288,2]
[400300278,1767316232135,-242.77578513,0.00015288,2]
[400300279,1767316232145,-150.0,0.00015288,2]
[400300280,1767316232154,-157.74,0.00015343,2]
[400300281,1767316232164,-500.0,0.00015343,2]
[400300282,1767316232173,-296.9491482,0.00015343,2]
[400300283,1767316232182,-467.65,0.00015508,2]
[400300284,1767316232192,-212.57,0.00015521,2]
[400300285,1767316232202,-150.0,0.00015579,2]
[400300286,1767316232211,-40.39791048,0.00015605,2]
[400300287,1767316232223,-477.49208952,0.00015605,2]
[400300288,1767316232232,-438.3991851,0.00015643,3]
[400300289,1767316232243,-352.59879329,0.00015643,3]
[400300290,1767316232254,-208.00202161,0.00015643,3]
[400300291,1767316232264,-534.91044295,0.00015795,2]
[400300292,1767316232273,-336.23116881,0.00015795,2]
[400300293,1767316232285,-163.76883119,0.00015795,2]
[400300294,1767316232294,-220.00733746,0.00015795,2]
[400300295,1767316232305,-171.03514681,0.00015795,2]
[400300296,1767316232314,-500.0,0.00015795,2]
[400300297,1767316232324,-1245.90006836,0.00015795,2]
[400300298,1767316232336,-41.00194301,0.00015795,2]
[400300299,1767316232345,-784.59438799,0.00015796,2]
[400300300,1767316232357,-3849.3494144,0.00015796,2]
[400300332,1767316238099,-1199.0,0.00015521,2]
[400300333,1767316238110,-3691.340393,0.00015796,2]
[400300334,1767316238122,-873.39,0.00015796,2]
[400300335,1767316238159,-919.38,0.00015796,2]
[400300336,1767316238170,-456.2420658,0.00015796,2]
[400300337,1767316238292,-93844.9943089,0.00015796,2]
[400300374,1767316240216,-1277.13479489,0.00015796,2]
[400300382,1767316244396,-18.5363457,0.00015796,2]
[400300390,1767316246105,-4604.95,0.00015796,2]
[400300395,1767316262654,500.0,0.00043162,120]
[400300396,1767316327358,500.0,0.00043162,120]
[400300397,1767316327795,500.0,0.00043162,120]
[400300398,1767316328437,500.0,0.00043162,120]
[400300399,1767316329501,500.0,0.00043162,120]
[400300400,1767316330312,500.0,0.00043162,120]
[400300401,1767316333195,317.97791297,0.00043162,120]
[400300402,1767316562258,500.0,0.00043162,120]
[400300403,1767316861683,500.0,0.00043162,120]
[400300404,1767316894163,66210.18178287,0.00043162,30]
[400300405,1767317041043,212.61,0.00043162,120]
[400300406,1767317161283,500.0,0.00043162,120]
[400300407,1767317175272,159.15224251,0.00043162,120]
[400300411,1767317373134,-168.03,0.00011804,2]
[400300412,1767317404012,185.58072659,0.00043162,120]
[400300413,1767317404214,186.0,0.00043162,30]
[400300414,1767317406216,206.16732049,0.00043162,120]
[400300415,1767317410508,185.92725278,0.00043162,120]
[400300416,1767317410688,202.77475079,0.00043162,120]
[400300417,1767317413467,354.89804327,0.00043162,120]
[400300418,1767317413695,241.31437437,0.00043162,120]
[400300419,1767317416181,203.09130033,0.00043162,120]
[400300420,1767317417020,870.11646728,0.00043162,120]
[400300421,1767317417168,154.88576013,0.00043162,35]
[400300422,1767317418307,195.26405795,0.00043162,120]
[400300423,1767317420254,158.44425661,0.00043162,120]
[400300424,1767317421884,405.11512342,0.00043162,120]
[400300425,1767317423666,250.92596463,0.00043162,120]
[400300426,1767317424920,178.57322793,0.00043162,120]
[400300427,1767317429183,299.40519769,0.00043162,120]
[400300428,1767317430548,210.53218868,0.00043162,120]
[400300429,1767317431432,185.1956776,0.00043162,120]
[400300442,1767317432345,-735.88103638,0.00013699,2]
[400300443,1767317432356,-88.65896362,0.00013699,2]
[400300444,1767317432366,-442.50105641,0.00013717,2]
[400300445,1767317432375,-600.0,0.00013736,2]
[400300446,1767317432384,-195.0,0.00013848,2]
[400300447,1767317432393,-753.096272,0.00014636,2]
[400300448,1767317432402,-200.0,0.0001471,2]
[400300449,1767317432412,-96.87370797,0.00014725,2]
[400300450,1767317432425,-53.12629203,0.00014725,2]
[400300451,1767317432434,-300.0,0.00015067,2]
[400300452,1767317432443,-346.87370797,0.00015067,2]
[400300453,1767317432455,-853.12629203,0.00015067,2]
[400300454,1767317432463,-195.0,0.00015068,2]
[400300455,1767317432473,-332.7257246,0.00015068,2]
[400300456,1767317432483,-325.64390776,0.00015068,2]
[400300457,1767317432494,-1435.1029539,0.00015068,2]
[400300458,1767317432505,-528.04427649,0.00015068,2]
[400300459,1767317432516,-211.20886185,0.00015068,2]
[400300460,1767317432526,-300.0,0.00015068,2]
[400300461,1767317432535,-487.79113815,0.00015068,2]
[400300463,1767317432578,-228.49147285,0.00013748,2]
[400300464,1767317432587,-807.37109356,0.00015068,2]
[400300465,1767317432596,-600.0,0.00015068,2]
[400300466,1767317432606,-213.59767627,0.00015068,2]
[400300467,1767317432615,-600.0,0.00015068,2]
[400300468,1767317432624,-600.0,0.00015068,2]
[400300469,1767317432635,-302.37012738,0.00015068,2]
[400300470,1767317432644,-481.93,0.00015291,2]
[400300471,1767317432653,-660.35,0.00015291,2]
[400300472,1767317432663,-481.83,0.00015292,2]
[400300474,1767317432672,-481.83,0.00015292,2]
[400300476,1767317432681,-163.51,0.00015513,2]
[400300478,1767317432691,-406.9244,0.00015517,2]
[400300480,1767317432700,-1000.0,0.00015532,2]
[400300481,1767317432709,-786.52,0.00015534,2]
[400300483,1767317432718,-500.0,0.00015535,2]
[400300485,1767317432727,-3240.0,0.00015536,2]
[400300487,1767317432736,-154.90064362,0.00015582,2]
[400300489,1767317432745,-1084.859,0.00015632,2]
[400300491,1767317432754,-156.762,0.00015632,2]
[400300493,1767317432763,-653.96174274,0.00015632,2]
[400300495,1767317432772,-219.47714914,0.00015632,2]
[400300497,1767317432782,-358.65641898,0.00015638,2]
[400300499,1767317432791,-374.43731007,0.00015695,2]
[400300501,1767317432801,-32225.57486369,0.00015696,2]
[400300503,1767317432812,-16832.74599624,0.00015696,2]
[400300506,1767317432824,-64954.98954322,0.00015696,2]
[400300508,1767317432835,-10601.67080775,0.00015696,2]
[400300514,1767317432877,207.66817084,0.00043162,120]
[400300516,1767317432889,-300.0,0.00015696,2]
[400300555,1767317434508,313.43123232,0.00043162,120]
[400300556,1767317435807,230.98900598,0.00043162,120]
[400300557,1767317437382,204.1845558,0.00043162,120]
[400300558,1767317437817,153.31961938,0.00043162,120]
[400300561,1767317438474,-8165.66750054,0.00015696,2]
[400300562,1767317438486,-8636.2463864,0.00015696,2]
[400300563,1767317438498,-3729.44527212,0.00015696,2]
[400300564,1767317438510,-822.627884,0.00015696,2]
[400300565,1767317438522,-66998.40908198,0.00015696,2]
[400300566,1767317438589,-1975.70483962,0.00015696,2]
[400300567,1767317438600,-540.01220046,0.00015696,2]
[400300569,1767317440512,-374.3946876,0.00015696,2]
[400300570,1767317440767,-3561.99998,0.00015696,2]
[400300573,1767317441116,301.97674587,0.00043162,120]
[400300574,1767317443019,269.07906848,0.00043162,120]
[400300594,1767317444928,-353.84946343,0.00015696,2]
[400300605,1767317446344,-1829.34553817,0.00015696,2]
[400300606,1767317446459,-2726.21303154,0.00015696,2]
[400300607,1767317446471,-1582.07143482,0.00015696,2]
[400300608,1767317446481,-817.05,0.00015696,2]
[400300609,1767317446575,-1065.32192759,0.00015696,2]
[400300616,1767317448649,217.56597575,0.00043162,120]
[400300617,1767317452409,203.23907835,0.00043162,120]
[400300618,1767317453918,340.4837961,0.00043162,120]
[400300619,1767317454176,259.72681698,0.00043162,120]
[400300620,1767317454504,608.97857247,0.00043162,30]
[400300621,1767317456313,237.48553484,0.00043162,120]
[400300622,1767317460052,187.73680951,0.00043162,120]
[400300623,1767317460832,163.50640719,0.00043162,120]
[400300624,1767317461443,500.0,0.00043162,120]
[400300625,1767317463194,169.50857524,0.00043162,120]
[400300626,1767317466894,156.60413776,0.00043162,120]
[400300627,1767317468903,193.47214908,0.00043162,120]
[400300628,1767317473398,163.20332643,0.00043162,120]
[400300629,1767317474318,385.57216915,0.00043162,120]
[400300630,1767317475375,171.70842487,0.00043162,120]
[400300631,1767317477528,159.63925753,0.00043162,120]
[400300632,1767317479986,227.47895892,0.00043162,120]
[400300633,1767317484343,186.3198671,0.00043162,120]
[400300634,1767317490824,283.98975794,0.00043162,120]
[400300635,1767317492802,226.63571431,0.00043162,120]
[400300636,1767317496052,155.62373885,0.00043162,120]
[400300637,1767317499333,209.24614923,0.00043162,120]
[400300638,1767317502978,449.08,0.00043162,120]
[400300639,1767317503357,500.0,0.00043162,120]
[400300640,1767317503587,158.251391,0.00043162,120]
[400300641,1767317507066,155.88119528,0.00043162,120]
[400300642,1767317508144,279.24443611,0.00043162,120]
[400300643,1767317512003,213.07865102,0.00043162,120]
[400300644,1767317512151,184.41369361,0.00043162,120]
[400300645,1767317514007,228.84593131,0.00043162,120]
[400300646,1767317516678,161.99896538,0.00043162,120]
[400300647,1767317518708,192.17766989,0.00043162,120]
[400300648,1767317523759,193.60699884,0.00043162,120]
[400300649,1767317523878,221.66924941,0.00043162,120]
[400300650,1767317525388,168.93383732,0.00043162,120]
[400300651,1767317525667,192.4161515,0.00043162,120]
[400300652,1767317525816,176.44079716,0.00043162,120]
[400300653,1767317528001,388.06644374,0.00043162,120]
[400300654,1767317530947,164.50658488,0.00043162,120]
[400300655,1767317531118,227.11212448,0.00043162,120]
[400300656,1767317532788,172.40465159,0.00043162,120]
[400300657,1767317532854,222.6996037,0.00043162,120]
[400300658,1767317532900,182.46475613,0.00043162,120]
[400300659,1767317534866,252.80413303,0.00043162,120]
[400300660,1767317535093,227.13103318,0.00043162,120]
[400300661,1767317539014,198.47408101,0.00043162,120]
[400300662,1767317541440,191.96974156,0.00043162,120]
[400300663,1767317542021,320.76890825,0.00043162,120]
[400300664,1767317543241,200.18436216,0.00043162,120]
[400300665,1767317544558,153.4678933,0.00043162,120]
[400300666,1767317545109,500.0,0.00043162,120]
[400300667,1767317545268,300.90242266,0.00043162,30]
[400300668,1767317545373,500.0,0.00043162,120]
[400300669,1767317545472,207.59811394,0.00043162,120]
[400300670,1767317546010,624.58996725,0.00043162,120]
[400300671,1767317547333,419.61764009,0.00043162,120]
[400300672,1767317548376,191.12328627,0.00043162,120]
[400300673,1767317548541,2785.647,0.00043162,120]
[400300674,1767317548971,157.15557168,0.00043162,120]
[400300675,1767317552327,169.43575348,0.00043162,120]
[400300676,1767317552573,478.72951157,0.00043162,120]
[400300677,1767317552628,202.92650188,0.00043162,120]
[400300678,1767317552679,299.03800978,0.00043162,120]
[400300679,1767317556670,199.24271599,0.00043162,120]
[400300680,1767317557088,152.68234322,0.00043162,120]